[Event "Early-Titled-Tuesday-Blitz-March-26-2024"]
[Site "Chess.com"]
[Date "2024.03.26"]
[Round "2"]
[White "JimDiGrease"]
[Black "djano"]
[Result "1/2-1/2"]
[WhiteElo "2961"]
[BlackElo "2654"]
[TimeControl "180+1"]
[EndTime "8:19:50 PDT"]
[Termination "Game drawn by repetition"]

1. d4 {[%clk 0:03:00.9]} 1... Nf6 {[%clk 0:03:00.3]} 2. c4 {[%clk 0:03:01.4]}
2... g6 {[%clk 0:03:00.4]} 3. Nc3 {[%clk 0:03:00.2]} 3... Bg7 {[%clk 0:03:01]}
4. e4 {[%clk 0:03:00.8]} 4... d6 {[%clk 0:03:01.5]} 5. Nf3 {[%clk 0:03:01.5]}
5... O-O {[%clk 0:02:59.8]} 6. Be2 {[%clk 0:03:02]} 6... c5 {[%clk 0:03:00.5]}
7. O-O {[%clk 0:02:58.5]} 7... cxd4 {[%clk 0:03:00.9]} 8. Nxd4 {[%clk
0:02:59.4]} 8... Nc6 {[%clk 0:03:01.5]} 9. Re1 {[%clk 0:02:58.3]} 9... Nxd4
{[%clk 0:03:00.8]} 10. Qxd4 {[%clk 0:02:56]} 10... Be6 {[%clk 0:03:00.9]} 11.
Qd2 {[%clk 0:02:29.7]} 11... Rc8 {[%clk 0:02:56.1]} 12. Qe3 {[%clk 0:01:45.9]}
12... Bxc4 {[%clk 0:02:51.7]} 13. Bxc4 {[%clk 0:01:46.1]} 13... Rxc4 {[%clk
0:02:52.6]} 14. Qxa7 {[%clk 0:01:46.3]} 14... b5 {[%clk 0:02:14.1]} 15. Bg5
{[%clk 0:01:27.5]} 15... h6 {[%clk 0:02:06.2]} 16. Bxf6 {[%clk 0:01:23.4]} 16...
Bxf6 {[%clk 0:02:07.1]} 17. Nd5 {[%clk 0:01:24]} 17... Bxb2 {[%clk 0:01:45.2]}
18. Rab1 {[%clk 0:01:20.2]} 18... Bd4 {[%clk 0:01:28.7]} 19. Qxe7 {[%clk
0:00:49.5]} 19... Rc2 {[%clk 0:01:28.3]} 20. Rf1 {[%clk 0:00:41.1]} 20... Rxa2
{[%clk 0:01:15]} 21. Rxb5 {[%clk 0:00:31.9]} 21... Kg7 {[%clk 0:00:56.6]} 22.
Rb4 {[%clk 0:00:08.6]} 22... Bc5 {[%clk 0:00:49.4]} 23. Rc4 {[%clk 0:00:08]}
23... Qxe7 {[%clk 0:00:36]} 24. Nxe7 {[%clk 0:00:08.9]} 24... Rb8 {[%clk
0:00:36.6]} 25. e5 {[%clk 0:00:05.8]} 25... Rxf2 {[%clk 0:00:24.3]} 26. Rcc1
{[%clk 0:00:02.9]} 26... Re2+ {[%clk 0:00:18.6]} 27. Kh1 {[%clk 0:00:03]} 27...
Rxe5 {[%clk 0:00:18.3]} 28. Nc6 {[%clk 0:00:03.5]} 28... Rbe8 {[%clk 0:00:17.8]}
29. Nxe5 {[%clk 0:00:03.8]} 29... Rxe5 {[%clk 0:00:18.7]} 30. Rfe1 {[%clk
0:00:04.2]} 30... Rf5 {[%clk 0:00:17.5]} 31. Rf1 {[%clk 0:00:04.5]} 31... Re5
{[%clk 0:00:17.9]} 32. Rce1 {[%clk 0:00:05.1]} 32... f6 {[%clk 0:00:14.1]} 33.
g3 {[%clk 0:00:04.7]} 33... f5 {[%clk 0:00:13.8]} 34. Kg2 {[%clk 0:00:04.5]}
34... Kf6 {[%clk 0:00:14.2]} 35. Kf3 {[%clk 0:00:04]} 35... Rd5 {[%clk
0:00:14.5]} 36. Rd1 {[%clk 0:00:03.9]} 36... Re5 {[%clk 0:00:14]} 37. Rfe1
{[%clk 0:00:04.5]} 37... g5 {[%clk 0:00:14.7]} 38. g4 {[%clk 0:00:04.3]} 38...
f4 {[%clk 0:00:10.7]} 39. Rxe5 {[%clk 0:00:03.8]} 39... Kxe5 {[%clk 0:00:11.6]}
40. Re1+ {[%clk 0:00:03.7]} 40... Kf6 {[%clk 0:00:10.3]} 41. Ke4 {[%clk
0:00:03.7]} 41... Bb4 {[%clk 0:00:09.4]} 42. Rd1 {[%clk 0:00:03.7]} 42... Bc5
{[%clk 0:00:10.3]} 43. Rd5 {[%clk 0:00:03.8]} 43... Kg6 {[%clk 0:00:09.4]} 44.
Rf5 {[%clk 0:00:04.3]} 44... h5 {[%clk 0:00:09.3]} 45. h3 {[%clk 0:00:04.8]}
45... hxg4 {[%clk 0:00:09.3]} 46. hxg4 {[%clk 0:00:05.7]} 46... Bb4 {[%clk
0:00:07.8]} 47. Kd5 {[%clk 0:00:05.9]} 47... Bc5 {[%clk 0:00:08.1]} 48. Ke6
{[%clk 0:00:06.4]} 48... Bb4 {[%clk 0:00:08.2]} 49. Rf6+ {[%clk 0:00:06.4]}
49... Kg7 {[%clk 0:00:08.4]} 50. Rf7+ {[%clk 0:00:04.3]} 50... Kg6 {[%clk
0:00:08.4]} 51. Rf6+ {[%clk 0:00:03.2]} 51... Kg7 {[%clk 0:00:08.8]} 52. Rf5
{[%clk 0:00:03.9]} 52... Kg6 {[%clk 0:00:08.6]} 53. Kd5 {[%clk 0:00:04.4]} 53...
Bc5 {[%clk 0:00:08.3]} 54. Ke4 {[%clk 0:00:03.8]} 54... Bb4 {[%clk 0:00:07]} 55.
Rd5 {[%clk 0:00:02.6]} 55... Bc5 {[%clk 0:00:07.3]} 56. Kf3 {[%clk 0:00:03.5]}
56... Kf6 {[%clk 0:00:07.3]} 57. Rd3 {[%clk 0:00:02.8]} 57... Bb4 {[%clk
0:00:07.1]} 58. Rd5 {[%clk 0:00:03.2]} 58... Bc5 {[%clk 0:00:07.5]} 59. Rf5+
{[%clk 0:00:04.1]} 59... Kg6 {[%clk 0:00:07.8]} 60. Rf8 {[%clk 0:00:04.8]} 60...
Kg7 {[%clk 0:00:07.8]} 61. Re8 {[%clk 0:00:05.2]} 61... Kf7 {[%clk 0:00:08.1]}
62. Re1 {[%clk 0:00:04.3]} 62... d5 {[%clk 0:00:06.9]} 63. Re5 {[%clk
0:00:04.4]} 63... Kf6 {[%clk 0:00:05.6]} 64. Rxd5 {[%clk 0:00:04.5]} 64... Be3
{[%clk 0:00:05.3]} 65. Rf5+ {[%clk 0:00:04.5]} 65... Kg6 {[%clk 0:00:05.7]} 66.
Ke4 {[%clk 0:00:05.1]} 66... Bd2 {[%clk 0:00:05.9]} 67. Ke5 {[%clk 0:00:05.6]}
67... Bc3+ {[%clk 0:00:06.4]} 68. Ke6 {[%clk 0:00:06.1]} 68... Bd4 {[%clk
0:00:06.4]} 69. Rf8 {[%clk 0:00:05.4]} 69... Bc3 {[%clk 0:00:06.8]} 70. Ra8
{[%clk 0:00:03.2]} 70... Bd4 {[%clk 0:00:06.8]} 71. Ra3 {[%clk 0:00:03.6]} 71...
Be3 {[%clk 0:00:06.3]} 72. Ke5 {[%clk 0:00:02.8]} 72... Bc1 {[%clk 0:00:04.8]}
73. Ra6+ {[%clk 0:00:02.9]} 73... Kg7 {[%clk 0:00:05.4]} 74. Ra7+ {[%clk
0:00:01.5]} 74... Kg6 {[%clk 0:00:05.5]} 75. Ra6+ {[%clk 0:00:02.4]} 75... Kg7
{[%clk 0:00:05.9]} 76. Kf5 {[%clk 0:00:03.1]} 76... f3 {[%clk 0:00:06]} 77. Ra2
{[%clk 0:00:02.6]} 77... Be3 {[%clk 0:00:04.8]} 78. Ke4 {[%clk 0:00:02.4]} 78...
f2 {[%clk 0:00:05.4]} 79. Ra1 {[%clk 0:00:03]} 79... Bd2 {[%clk 0:00:05.7]} 80.
Rf1 {[%clk 0:00:02.9]} 80... Be1 {[%clk 0:00:06.2]} 81. Kf3 {[%clk 0:00:02.9]}
81... Kf6 {[%clk 0:00:06.1]} 82. Rxf2 {[%clk 0:00:02.3]} 82... Bxf2 {[%clk
0:00:06.1]} 83. Kxf2 {[%clk 0:00:03.2]} 83... Ke6 {[%clk 0:00:04.4]} 84. Ke2
{[%clk 0:00:03.6]} 84... Kd6 {[%clk 0:00:04.5]} 85. Kd2 {[%clk 0:00:03.7]} 85...
Ke6 {[%clk 0:00:04.6]} 86. Ke2 {[%clk 0:00:03.9]} 86... Kd6 {[%clk 0:00:03.1]}
87. Kd2 {[%clk 0:00:04.2]} 87... Ke6 {[%clk 0:00:03.4]} 88. Ke2 {[%clk
0:00:03.7]} 1/2-1/2

[Event "Early-Titled-Tuesday-Blitz-March-26-2024"]
[Site "Chess.com"]
[Date "2024.03.26"]
[Round "2"]
[White "YairParkhov"]
[Black "shimastream"]
[Result "0-1"]
[WhiteElo "2699"]
[BlackElo "3043"]
[TimeControl "180+1"]
[EndTime "8:20:06 PDT"]
[Termination "shimastream won by resignation"]

1. d4 {[%clk 0:03:00.9]} 1... b6 {[%clk 0:02:55]} 2. e4 {[%clk 0:02:59.1]} 2...
Bb7 {[%clk 0:02:55]} 3. Bd3 {[%clk 0:02:59.8]} 3... e6 {[%clk 0:02:54.9]} 4. Nf3
{[%clk 0:03:00.5]} 4... c5 {[%clk 0:02:53.9]} 5. Bg5 {[%clk 0:02:46.4]} 5... Be7
{[%clk 0:02:33.9]} 6. Bxe7 {[%clk 0:02:46.2]} 6... Qxe7 {[%clk 0:02:34.8]} 7. c3
{[%clk 0:02:45.1]} 7... Nf6 {[%clk 0:02:32.4]} 8. Nbd2 {[%clk 0:02:44]} 8... O-O
{[%clk 0:02:30.6]} 9. O-O {[%clk 0:02:43.4]} 9... cxd4 {[%clk 0:02:27.2]} 10.
cxd4 {[%clk 0:02:43.5]} 10... d6 {[%clk 0:02:27.8]} 11. Rc1 {[%clk 0:02:41.5]}
11... Nc6 {[%clk 0:02:25.6]} 12. a3 {[%clk 0:02:41.3]} 12... Rac8 {[%clk
0:02:25.5]} 13. Qe2 {[%clk 0:02:37.3]} 13... Rfd8 {[%clk 0:02:15.7]} 14. Ba6
{[%clk 0:02:20]} 14... h6 {[%clk 0:01:56]} 15. h3 {[%clk 0:02:18.8]} 15... Bxa6
{[%clk 0:01:52.2]} 16. Qxa6 {[%clk 0:02:19.7]} 16... Rc7 {[%clk 0:01:52.1]} 17.
Rc3 {[%clk 0:02:17]} 17... Nb8 {[%clk 0:01:46.8]} 18. Qd3 {[%clk 0:02:14.8]}
18... Rdc8 {[%clk 0:01:42.6]} 19. Rfc1 {[%clk 0:02:14.5]} 19... Rxc3 {[%clk
0:01:42.1]} 20. Rxc3 {[%clk 0:02:15.4]} 20... Rxc3 {[%clk 0:01:42.5]} 21. Qxc3
{[%clk 0:02:16.3]} 21... Qb7 {[%clk 0:01:42.9]} 22. Qc2 {[%clk 0:02:06.5]} 22...
Nbd7 {[%clk 0:01:41.5]} 23. Kf1 {[%clk 0:02:04.7]} 23... Nf8 {[%clk 0:01:36.3]}
24. Ke1 {[%clk 0:02:01.8]} 24... Ng6 {[%clk 0:01:36.1]} 25. g3 {[%clk
0:02:01.5]} 25... Ne7 {[%clk 0:01:35.4]} 26. Ng1 {[%clk 0:01:52.7]} 26... b5
{[%clk 0:01:22.9]} 27. Ne2 {[%clk 0:01:52.5]} 27... Nc6 {[%clk 0:01:20]} 28. f3
{[%clk 0:01:49.3]} 28... Qb6 {[%clk 0:01:16.1]} 29. Qd3 {[%clk 0:01:45.7]} 29...
a5 {[%clk 0:01:12.9]} 30. g4 {[%clk 0:01:40]} 30... a4 {[%clk 0:01:02.2]} 31.
Kd1 {[%clk 0:01:39.7]} 31... b4 {[%clk 0:00:47.9]} 32. axb4 {[%clk 0:01:37.7]}
32... Nxb4 {[%clk 0:00:47.7]} 33. Qc3 {[%clk 0:01:33.6]} 33... Qb7 {[%clk
0:00:44.3]} 34. Nc4 {[%clk 0:01:31.4]} 34... Ne8 {[%clk 0:00:38]} 35. Na3 {[%clk
0:01:20.7]} 35... Nc7 {[%clk 0:00:35.8]} 36. Nc1 {[%clk 0:01:19.9]} 36... Nc6
{[%clk 0:00:30.6]} 37. Nd3 {[%clk 0:01:17.1]} 37... Qb6 {[%clk 0:00:26.5]} 38.
Nc4 {[%clk 0:00:50.4]} 38... Qxd4 {[%clk 0:00:26.4]} 39. Qxd4 {[%clk 0:00:48.3]}
39... Nxd4 {[%clk 0:00:27.3]} 40. Nxd6 {[%clk 0:00:47.9]} 40... Nxf3 {[%clk
0:00:27.4]} 41. Nc5 {[%clk 0:00:46.8]} 41... Ng1 {[%clk 0:00:20.9]} 42. h4
{[%clk 0:00:41.6]} 42... Nf3 {[%clk 0:00:20.8]} 43. Nxa4 {[%clk 0:00:41.2]}
43... Nxh4 {[%clk 0:00:20.9]} 44. Nc5 {[%clk 0:00:41.1]} 44... Nf3 {[%clk
0:00:20.8]} 45. b4 {[%clk 0:00:41.2]} 45... Ne5 {[%clk 0:00:19.3]} 46. b5 {[%clk
0:00:41.6]} 46... Na8 {[%clk 0:00:19.3]} 47. Nc8 {[%clk 0:00:37.9]} 47... Nc4
{[%clk 0:00:16.6]} 48. Nd7 {[%clk 0:00:37.6]} 48... Nc7 {[%clk 0:00:11.3]} 49.
b6 {[%clk 0:00:37.4]} 49... Na6 {[%clk 0:00:11.9]} 50. b7 {[%clk 0:00:36.2]}
50... g5 {[%clk 0:00:09.5]} 51. Ke2 {[%clk 0:00:33.8]} 51... Kg7 {[%clk
0:00:09.2]} 52. Na7 {[%clk 0:00:28.2]} 52... Nd6 {[%clk 0:00:06]} 53. Nc5 {[%clk
0:00:18.5]} 53... Nb8 {[%clk 0:00:06.2]} 54. Kf3 {[%clk 0:00:16.5]} 54... Nc4
{[%clk 0:00:05.9]} 55. Nb5 {[%clk 0:00:13.5]} 55... Ne5+ {[%clk 0:00:06.5]} 56.
Kg3 {[%clk 0:00:13.4]} 56... Kf6 {[%clk 0:00:07]} 57. Nd6 {[%clk 0:00:13.6]}
57... Ke7 {[%clk 0:00:06.7]} 58. Nc8+ {[%clk 0:00:12]} 58... Kd8 {[%clk
0:00:05.9]} 59. Nd6 {[%clk 0:00:12.2]} 59... Kc7 {[%clk 0:00:05.5]} 60. Ne8+
{[%clk 0:00:10.7]} 60... Kc6 {[%clk 0:00:05.7]} 61. Nb3 {[%clk 0:00:09.3]} 61...
Kxb7 {[%clk 0:00:02.9]} 62. Nd4 {[%clk 0:00:09.6]} 62... Nbc6 {[%clk 0:00:02.6]}
63. Nb5 {[%clk 0:00:08.3]} 63... Kc8 {[%clk 0:00:03.2]} 64. Nf6 {[%clk
0:00:08.3]} 64... Kd8 {[%clk 0:00:03.6]} 65. Ng8 {[%clk 0:00:08.1]} 65... Ne7
{[%clk 0:00:03.8]} 66. Nxh6 {[%clk 0:00:08.2]} 66... Ke8 {[%clk 0:00:03.9]} 67.
Nd6+ {[%clk 0:00:08.5]} 67... Kf8 {[%clk 0:00:04.5]} 68. Kf2 {[%clk 0:00:06]}
68... Kg7 {[%clk 0:00:04.8]} 69. Nhxf7 {[%clk 0:00:06.2]} 69... Nxf7 {[%clk
0:00:05.1]} 70. Ne8+ {[%clk 0:00:06.9]} 70... Kg6 {[%clk 0:00:05.2]} 71. Nc7
{[%clk 0:00:07.5]} 71... Kf6 {[%clk 0:00:05.4]} 72. Ke3 {[%clk 0:00:07.2]} 72...
Ne5 {[%clk 0:00:05.3]} 73. Ne8+ {[%clk 0:00:07.5]} 73... Kf7 {[%clk 0:00:05]}
74. Nd6+ {[%clk 0:00:08]} 74... Kf6 {[%clk 0:00:05.5]} 75. Ne8+ {[%clk
0:00:08.1]} 75... Kg6 {[%clk 0:00:05.8]} 76. Nc7 {[%clk 0:00:07.1]} 76... Nxg4+
{[%clk 0:00:05.8]} 77. Kf3 {[%clk 0:00:07.6]} 77... Ne5+ {[%clk 0:00:05.9]} 78.
Kg3 {[%clk 0:00:08.2]} 78... Kf7 {[%clk 0:00:06.3]} 79. Nb5 {[%clk 0:00:07.9]}
79... Ng8 {[%clk 0:00:06.3]} 80. Nd6+ {[%clk 0:00:08.4]} 80... Ke7 {[%clk
0:00:06.9]} 81. Nc8+ {[%clk 0:00:09]} 81... Kf6 {[%clk 0:00:06.3]} 82. Nd6
{[%clk 0:00:09.3]} 82... Ke7 {[%clk 0:00:06.4]} 83. Nc8+ {[%clk 0:00:09.3]}
83... Kf8 {[%clk 0:00:06.9]} 84. Nd6 {[%clk 0:00:09.8]} 84... Nf6 {[%clk
0:00:07.4]} 85. Nc8 {[%clk 0:00:09.2]} 85... Nxe4+ {[%clk 0:00:07.5]} 86. Kg2
{[%clk 0:00:09.2]} 86... Nf6 {[%clk 0:00:08.4]} 87. Nd6 {[%clk 0:00:09.6]} 87...
Ke7 {[%clk 0:00:08.5]} 88. Nc8+ {[%clk 0:00:10.1]} 88... Kd7 {[%clk 0:00:08.8]}
89. Nb6+ {[%clk 0:00:10.6]} 89... Kc6 {[%clk 0:00:08.7]} 90. Nc8 {[%clk
0:00:11.2]} 90... Nd5 {[%clk 0:00:08]} 91. Kg3 {[%clk 0:00:11]} 91... Kc7 {[%clk
0:00:07.3]} 92. Na7 {[%clk 0:00:11.1]} 92... Nc3 {[%clk 0:00:07.7]} 93. Kf2
{[%clk 0:00:10.1]} 93... Kb7 {[%clk 0:00:07.8]} 94. Ke3 {[%clk 0:00:10.4]} 94...
Kxa7 {[%clk 0:00:07.8]} 95. Kd4 {[%clk 0:00:11.3]} 95... g4 {[%clk 0:00:08]} 96.
Kxe5 {[%clk 0:00:10.5]} 96... g3 {[%clk 0:00:08.2]} 97. Kd4 {[%clk 0:00:11.2]}
97... g2 {[%clk 0:00:08.8]} 98. Ke5 {[%clk 0:00:11.7]} 98... g1=Q {[%clk
0:00:09.3]} 99. Kd6 {[%clk 0:00:12.6]} 99... Qd4+ {[%clk 0:00:09.4]} 0-1

[Event "Early-Titled-Tuesday-Blitz-March-26-2024"]
[Site "Chess.com"]
[Date "2024.03.26"]
[Round "2"]
[White "AwareIdea"]
[Black "teresin05"]
[Result "1/2-1/2"]
[WhiteElo "2505"]
[BlackElo "2284"]
[TimeControl "180+1"]
[EndTime "8:20:41 PDT"]
[Termination "Game drawn - insufficient material"]

1. d4 {[%clk 0:02:55.8]} 1... d5 {[%clk 0:02:59]} 2. Bf4 {[%clk 0:02:52.3]} 2...
Nf6 {[%clk 0:02:59.2]} 3. e3 {[%clk 0:02:51]} 3... c5 {[%clk 0:02:54.9]} 4. Nc3
{[%clk 0:02:50.4]} 4... a6 {[%clk 0:02:51.9]} 5. Qd2 {[%clk 0:02:48.1]} 5... Nc6
{[%clk 0:02:52.1]} 6. Nf3 {[%clk 0:02:47.7]} 6... Bf5 {[%clk 0:02:51.7]} 7. Ne5
{[%clk 0:02:47.4]} 7... e6 {[%clk 0:02:49]} 8. f3 {[%clk 0:02:42.7]} 8... Nxe5
{[%clk 0:02:47.2]} 9. Bxe5 {[%clk 0:02:42.1]} 9... Nd7 {[%clk 0:02:46.4]} 10.
Bg3 {[%clk 0:02:41.9]} 10... cxd4 {[%clk 0:02:42.8]} 11. exd4 {[%clk 0:02:42.8]}
11... Bb4 {[%clk 0:02:40.9]} 12. a3 {[%clk 0:02:42.3]} 12... Ba5 {[%clk
0:02:40.9]} 13. b4 {[%clk 0:02:40.5]} 13... Bb6 {[%clk 0:02:41.5]} 14. Na4
{[%clk 0:02:40.4]} 14... Ba7 {[%clk 0:02:41.3]} 15. Nc5 {[%clk 0:02:38.2]} 15...
Nxc5 {[%clk 0:02:36.7]} 16. dxc5 {[%clk 0:02:39.1]} 16... O-O {[%clk 0:02:34.1]}
17. Be2 {[%clk 0:02:38.9]} 17... b6 {[%clk 0:02:33.9]} 18. c6 {[%clk 0:02:23.3]}
18... b5 {[%clk 0:02:26.3]} 19. c7 {[%clk 0:02:16.3]} 19... Qd7 {[%clk 0:02:19]}
20. a4 {[%clk 0:02:08.8]} 20... Rfc8 {[%clk 0:02:10.6]} 21. axb5 {[%clk
0:02:06.7]} 21... axb5 {[%clk 0:02:11.5]} 22. Ra5 {[%clk 0:01:59.5]} 22... Bb6
{[%clk 0:02:07.4]} 23. Bxb5 {[%clk 0:01:56.4]} 23... Qe7 {[%clk 0:02:00.5]} 24.
Ra6 {[%clk 0:01:49.9]} 24... Bxc7 {[%clk 0:01:52.2]} 25. Rxa8 {[%clk 0:01:36.2]}
25... Rxa8 {[%clk 0:01:48.6]} 26. O-O {[%clk 0:01:31.9]} 26... Bxg3 {[%clk
0:01:42.8]} 27. hxg3 {[%clk 0:01:32.8]} 27... Rb8 {[%clk 0:01:43]} 28. c4 {[%clk
0:01:12.3]} 28... dxc4 {[%clk 0:01:34]} 29. Bxc4 {[%clk 0:01:13.2]} 29... Qxb4
{[%clk 0:01:31.5]} 30. Qxb4 {[%clk 0:01:07.8]} 30... Rxb4 {[%clk 0:01:32.4]} 31.
Rc1 {[%clk 0:01:08.2]} 31... Rb8 {[%clk 0:01:24.9]} 32. g4 {[%clk 0:01:07.5]}
32... Bg6 {[%clk 0:01:23.4]} 33. Be2 {[%clk 0:01:05.6]} 33... Kf8 {[%clk
0:01:19.7]} 34. Rc7 {[%clk 0:01:05.1]} 34... f6 {[%clk 0:01:13.1]} 35. Kf2
{[%clk 0:01:00.9]} 35... Bf7 {[%clk 0:01:09.6]} 36. Bd3 {[%clk 0:00:54.9]} 36...
h6 {[%clk 0:01:08.1]} 37. g3 {[%clk 0:00:50]} 37... e5 {[%clk 0:01:06.3]} 38. f4
{[%clk 0:00:44.7]} 38... Re8 {[%clk 0:01:01.2]} 39. Bb5 {[%clk 0:00:38.6]} 39...
Rb8 {[%clk 0:00:54.8]} 40. Bd3 {[%clk 0:00:38.2]} 40... Rd8 {[%clk 0:00:46.7]}
41. Ke3 {[%clk 0:00:35.7]} 41... Re8 {[%clk 0:00:33.8]} 42. Kf2 {[%clk
0:00:27.4]} 42... Re7 {[%clk 0:00:24.8]} 43. Rc8+ {[%clk 0:00:26.3]} 43... Be8
{[%clk 0:00:24.7]} 44. Bb5 {[%clk 0:00:24.3]} 44... Kf7 {[%clk 0:00:22.3]} 45.
Bc4+ {[%clk 0:00:24]} 45... Kg6 {[%clk 0:00:20.2]} 46. Bd3+ {[%clk 0:00:20]}
46... e4 {[%clk 0:00:19.9]} 47. Bc2 {[%clk 0:00:19.7]} 47... Kf7 {[%clk
0:00:15.2]} 48. Ke3 {[%clk 0:00:17.6]} 48... Bd7 {[%clk 0:00:14.7]} 49. Bb3+
{[%clk 0:00:14.5]} 49... Kg6 {[%clk 0:00:14.6]} 50. Rc4 {[%clk 0:00:08.6]} 50...
Bxg4 {[%clk 0:00:12.2]} 51. Rxe4 {[%clk 0:00:08.6]} 51... Rxe4+ {[%clk
0:00:08.9]} 52. Kxe4 {[%clk 0:00:09.5]} 52... Bf5+ {[%clk 0:00:09]} 53. Kf3
{[%clk 0:00:09.2]} 53... Bd3 {[%clk 0:00:09.3]} 54. Bd5 {[%clk 0:00:08.2]} 54...
Kf5 {[%clk 0:00:09.4]} 55. Bf7 {[%clk 0:00:06.7]} 55... Be4+ {[%clk 0:00:06.8]}
56. Ke3 {[%clk 0:00:06.7]} 56... Bg2 {[%clk 0:00:06.5]} 57. Kf2 {[%clk 0:00:05]}
57... Bc6 {[%clk 0:00:07.1]} 58. Bh5 {[%clk 0:00:04.4]} 58... g6 {[%clk
0:00:06.1]} 59. Be2 {[%clk 0:00:04.2]} 59... h5 {[%clk 0:00:05.9]} 60. Ke3
{[%clk 0:00:04.3]} 60... g5 {[%clk 0:00:05.1]} 61. Bxh5 {[%clk 0:00:03.5]} 61...
gxf4+ {[%clk 0:00:04.8]} 62. gxf4 {[%clk 0:00:04.4]} 62... Bb7 {[%clk
0:00:03.7]} 63. Bd1 {[%clk 0:00:04.5]} 63... Bc6 {[%clk 0:00:04.1]} 64. Bc2+
{[%clk 0:00:04.4]} 64... Kg4 {[%clk 0:00:04.9]} 65. Bg6 {[%clk 0:00:03.9]} 65...
Kg3 {[%clk 0:00:04.3]} 66. Bf7 {[%clk 0:00:02.8]} 66... Kg4 {[%clk 0:00:04.5]}
67. Bc4 {[%clk 0:00:03.1]} 67... Kg3 {[%clk 0:00:04.8]} 68. Be6 {[%clk
0:00:03.6]} 68... Bb7 {[%clk 0:00:03.5]} 69. Bd7 {[%clk 0:00:02.4]} 69... Bg2
{[%clk 0:00:04]} 70. Bc8 {[%clk 0:00:02.4]} 70... Bc6 {[%clk 0:00:04.4]} 71. Bf5
{[%clk 0:00:02.7]} 71... Bd5 {[%clk 0:00:04.9]} 72. Bd3 {[%clk 0:00:03.3]} 72...
Bc6 {[%clk 0:00:04.6]} 73. Be4 {[%clk 0:00:04]} 73... Bd7 {[%clk 0:00:04]} 74.
Bd3 {[%clk 0:00:04]} 74... Kg4 {[%clk 0:00:03.8]} 75. Be2+ {[%clk 0:00:04.5]}
75... Kg3 {[%clk 0:00:04.4]} 76. Bf3 {[%clk 0:00:05.4]} 76... f5 {[%clk
0:00:04.2]} 77. Bd5 {[%clk 0:00:05.4]} 77... Be8 {[%clk 0:00:04.5]} 78. Bf3
{[%clk 0:00:05.3]} 78... Bg6 {[%clk 0:00:04.5]} 79. Be2 {[%clk 0:00:05.7]} 79...
Bf7 {[%clk 0:00:04.7]} 80. Bd3 {[%clk 0:00:06.6]} 80... Kg4 {[%clk 0:00:03.9]}
81. Be2+ {[%clk 0:00:06.2]} 81... Kg3 {[%clk 0:00:04.4]} 82. Bd1 {[%clk
0:00:07.1]} 82... Be6 {[%clk 0:00:04.2]} 83. Bh5 {[%clk 0:00:07.6]} 83... Bd5
{[%clk 0:00:04.5]} 84. Bg6 {[%clk 0:00:07.7]} 84... Be4 {[%clk 0:00:05.1]} 85.
Bf7 {[%clk 0:00:08.2]} 85... Bc2 {[%clk 0:00:05.6]} 86. Bd5 {[%clk 0:00:08.5]}
86... Kg4 {[%clk 0:00:05.4]} 87. Bf3+ {[%clk 0:00:08.3]} 87... Kh4 {[%clk
0:00:05.4]} 88. Bh1 {[%clk 0:00:09.2]} 88... Kg3 {[%clk 0:00:05.6]} 89. Bc6
{[%clk 0:00:09.1]} 89... Kh4 {[%clk 0:00:06.3]} 90. Bd7 {[%clk 0:00:10]} 90...
Kg4 {[%clk 0:00:06.7]} 91. Be8 {[%clk 0:00:10.6]} 91... Kg3 {[%clk 0:00:06.3]}
92. Bh5 {[%clk 0:00:10.9]} 92... Kh4 {[%clk 0:00:06.7]} 93. Be2 {[%clk
0:00:11.3]} 93... Kg3 {[%clk 0:00:07.1]} 94. Bc4 {[%clk 0:00:11.6]} 94... Kg4
{[%clk 0:00:07.5]} 95. Ba6 {[%clk 0:00:12.4]} 95... Kg3 {[%clk 0:00:07.9]} 96.
Bb7 {[%clk 0:00:13]} 96... Kg4 {[%clk 0:00:08.6]} 97. Ba8 {[%clk 0:00:13.6]}
97... Kg3 {[%clk 0:00:09.1]} 98. Bb7 {[%clk 0:00:13.4]} 98... Kg4 {[%clk
0:00:09.7]} 99. Ba6 {[%clk 0:00:14]} 99... Kg3 {[%clk 0:00:10.1]} 100. Be2
{[%clk 0:00:14.8]} 100... Bb1 {[%clk 0:00:09.4]} 101. Bd1 {[%clk 0:00:15.1]}
101... Kh4 {[%clk 0:00:08.9]} 102. Bb3 {[%clk 0:00:14.9]} 102... Be4 {[%clk
0:00:08.4]} 103. Kd4 {[%clk 0:00:15.2]} 103... Kg3 {[%clk 0:00:08]} 104. Ke5
{[%clk 0:00:15.8]} 104... Kg4 {[%clk 0:00:08.2]} 105. Be6 {[%clk 0:00:15.5]}
105... Bd3 {[%clk 0:00:08.3]} 106. Bf7 {[%clk 0:00:15.7]} 106... Be4 {[%clk
0:00:08.5]} 107. Bb3 {[%clk 0:00:15.7]} 107... Bd3 {[%clk 0:00:08.7]} 108. Bd1+
{[%clk 0:00:16.1]} 108... Kg3 {[%clk 0:00:08.3]} 109. Bh5 {[%clk 0:00:16.3]}
109... Bc2 {[%clk 0:00:08.1]} 110. Bf7 {[%clk 0:00:16.5]} 110... Kg4 {[%clk
0:00:08.3]} 111. Bd5 {[%clk 0:00:16.5]} 111... Bd3 {[%clk 0:00:08.7]} 112. Bb3
{[%clk 0:00:16.4]} 112... Be4 {[%clk 0:00:08.7]} 113. Bd1+ {[%clk 0:00:16.5]}
113... Kg3 {[%clk 0:00:08.2]} 114. Be2 {[%clk 0:00:16.4]} 114... Bc2 {[%clk
0:00:08]} 115. Bh5 {[%clk 0:00:15.6]} 115... Be4 {[%clk 0:00:08.3]} 116. Bg6
{[%clk 0:00:15.8]} 116... Kg4 {[%clk 0:00:08.7]} 117. Bh7 {[%clk 0:00:16.4]}
117... Bd3 {[%clk 0:00:08.9]} 118. Bg8 {[%clk 0:00:16.1]} 118... Bc2 {[%clk
0:00:09.4]} 119. Bd5 {[%clk 0:00:16.4]} 119... Bd3 {[%clk 0:00:09.8]} 120. Be6
{[%clk 0:00:17.3]} 120... Bc2 {[%clk 0:00:09.4]} 121. Bxf5+ {[%clk 0:00:18.2]}
121... Bxf5 {[%clk 0:00:09.1]} 122. Kf6 {[%clk 0:00:18.6]} 122... Kxf4 {[%clk
0:00:09.4]} 1/2-1/2

[Event "Early-Titled-Tuesday-Blitz-March-26-2024"]
[Site "Chess.com"]
[Date "2024.03.26"]
[Round "3"]
[White "Zhigalko_Sergei"]
[Black "Zurability"]
[Result "1-0"]
[WhiteElo "2909"]
[BlackElo "2720"]
[TimeControl "180+1"]
[EndTime "8:22:59 PDT"]
[Termination "Zhigalko_Sergei won by checkmate"]

1. e4 {[%clk 0:03:00.9]} 1... c5 {[%clk 0:02:59.3]} 2. Nf3 {[%clk 0:03:01]} 2...
d6 {[%clk 0:02:59.7]} 3. d4 {[%clk 0:03:01.5]} 3... cxd4 {[%clk 0:03:00.1]} 4.
Qxd4 {[%clk 0:03:02.4]} 4... a6 {[%clk 0:02:59.5]} 5. Bc4 {[%clk 0:03:02.1]}
5... Nc6 {[%clk 0:02:59.7]} 6. Qd3 {[%clk 0:03:02.5]} 6... Bg4 {[%clk
0:02:53.8]} 7. Nc3 {[%clk 0:03:01.8]} 7... Nb4 {[%clk 0:02:28.2]} 8. Bxf7+
{[%clk 0:02:52.7]} 8... Kxf7 {[%clk 0:02:14.7]} 9. Qc4+ {[%clk 0:02:52.3]} 9...
d5 {[%clk 0:02:14.9]} 10. Ne5+ {[%clk 0:02:38.3]} 10... Ke6 {[%clk 0:02:11.1]}
11. exd5+ {[%clk 0:02:34.4]} 11... Kxe5 {[%clk 0:01:58.2]} 12. Qf4# {[%clk
0:02:34.1]} 1-0